bitfinex/quotes_SOLUSD_20251009
["timestamp","ask_amount","ask_price","bid_price","bid_amount"]
[1759998070732,0.7,222.56,222.51,3.34729269]
[1759998070923,10.366035,222.54,222.51,3.34729269]
[1759998071129,4.49143243,222.65,222.43,3.34729269]
[1759998071130,10.366035,222.48,222.43,3.34729269]
[1759998071448,10.366035,222.53,222.51,20.8]
[1759998071618,0.7,222.57,222.51,24.14729269]
[1759998072136,0.7,222.57,222.38,13.32135891]
[1759998072137,13.71332769,222.55,222.38,13.32135891]
[1759998072320,10.366035,222.49,222.35,10.87647521]
[1759998072519,10.366035,222.49,222.43,3.34729269]
[1759998072844,4.49550209,222.48,222.32,15.74307304]
[1759998073025,10.366035,222.42,222.36,3.34729269]
[1759998073350,10.366035,222.42,222.35,3.34729269]
[1759998073549,10.366035,222.42,222.37,3.34729269]
[1759998073736,10.366035,222.48,222.33,10.87647521]
[1759998073914,0.7,222.47,222.37,20.8]
[1759998074114,0.7,222.47,222.36,20.8]
[1759998074115,10.366035,222.44,222.36,10.87647521]
[1759998074314,10.366035,222.44,222.37,4.49700948]
[1759998074520,4.49429623,222.51,222.43,20.8]
[1759998074521,10.366035,222.48,222.43,20.8]
[1759998074742,10.366035,222.53,222.47,20.8]
[1759998075246,10.366035,222.52,222.47,20.8]
[1759998075422,10.366035,222.5,222.47,20.8]
[1759998075621,11.066035,222.52,222.47,20.8]
[1759998075833,0.4482094,222.6,222.47,20.8]
[1759998075834,10.366035,222.54,222.5,3.34729269]
[1759998076065,10.366035,222.54,222.48,10.87647521]
[1759998076066,10.366035,222.54,222.52,3.34729269]
[1759998076349,10.366035,222.54,222.52,4.49379912]
[1759998076543,10.366035,222.54,222.53,20.8]
[1759998076744,10.366035,222.54,222.52,3.34729269]
[1759998076954,0.7,222.53,222.45,3.34729269]
[1759998077118,10.366035,222.5,222.47,20.8]
[1759998077322,10.366035,222.52,222.48,20.8]
[1759998077633,10.366035,222.54,222.49,20.8]
[1759998077942,0.4482094,222.66,222.49,20.8]
[1759998077943,0.7,222.53,222.49,20.8]
[1759998078338,0.7,222.53,222.46,20.8]
[1759998078339,10.366035,222.5,222.46,20.8]
[1759998078847,10.366035,222.52,222.48,24.14729269]
[1759998079069,10.366035,222.54,222.5,3.34729269]
[1759998079350,10.366035,222.56,222.5,3.34729269]
[1759998079520,4.4917923,222.63,222.43,19.08258019]
[1759998079521,10.366035,222.6,222.53,31.67647521]
[1759998079828,10.366035,222.64,222.55,10.87647521]
[1759998080019,10.366035,222.64,222.56,10.87647521]
[1759998080219,10.366035,222.64,222.59,20.8]
[1759998080447,0.69,222.65,222.61,20.8]
[1759998080754,10.366035,222.66,222.61,20.8]
[1759998080957,0.4482094,222.77,222.6,20.8]
[1759998080958,10.366035,222.62,222.6,20.8]
[1759998081130,10.366035,222.6,222.54,25.29356121]
[1759998081434,1.1382094,222.61,222.55,20.8]
[1759998081435,10.366035,222.58,222.55,20.8]
[1759998081741,10.366035,222.58,222.53,4.4937247]
[1759998081742,0.69,222.57,222.53,25.2937247]
[1759998081951,10.366035,222.58,222.53,25.2937247]
[1759998082326,11.056035,222.58,222.53,20.8]
[1759998082528,11.056035,222.58,222.53,25.29375024]
[1759998082753,10.366035,222.58,222.53,25.29375024]
[1759998083046,10.366035,222.65,222.59,20.8]
[1759998083755,10.366035,222.65,222.6,3.34729269]
[1759998083955,11.056035,222.67,222.6,3.34729269]
[1759998084157,10.366035,222.65,222.61,20.8]
[1759998084324,0.69,222.64,222.56,10.87647521]
[1759998084524,10.366035,222.62,222.54,4.49354505]
[1759998084739,3.34729269,222.64,222.54,20.8]
[1759998084740,10.366035,222.59,222.54,20.8]
[1759998085025,0.69,222.58,222.54,20.8]
[1759998085356,10.366035,222.59,222.54,24.14729269]
[1759998085529,10.366035,222.62,222.58,24.14729269]
[1759998085949,10.366035,222.64,222.58,3.34729269]
[1759998086128,10.366035,222.64,222.6,24.14729269]
[1759998086533,10.366035,222.62,222.6,20.8]
[1759998086751,10.366035,222.59,222.58,20.8]
[1759998087444,10.366035,222.57,222.54,10.87647521]
[1759998087748,10.366035,222.57,222.56,20.8]
[1759998087932,10.366035,222.59,222.57,20.8]
[1759998088462,10.366035,222.59,222.58,4.49276664]
[1759998088657,10.366035,222.61,222.58,4.49276664]
[1759998088838,11.056035,222.61,222.57,28.64024703]
[1759998089034,0.69,222.6,222.54,20.8]
[1759998089239,10.366035,222.58,222.56,20.8]
[1759998089446,10.366035,222.6,222.58,10.87647521]
[1759998089647,10.366035,222.62,222.59,3.34729269]
[1759998089957,11.056035,222.62,222.59,3.34729269]
[1759998090361,0.69,222.61,222.53,4.49365109]
[1759998090568,10.366035,222.59,222.57,20.8]
[1759998090738,0.69,222.58,222.52,10.87647521]
[1759998091067,0.69,222.58,222.55,20.8]
[1759998091068,10.366035,222.56,222.55,20.8]
[1759998091242,11.056035,222.56,222.55,20.8]
[1759998091647,10.366035,222.54,222.52,4.49395759]
[1759998092055,10.366035,222.56,222.52,28.64125028]
[1759998092568,10.366035,222.56,222.53,3.34729269]
[1759998092854,10.366035,222.54,222.52,20.8]
[1759998093063,10.366035,222.54,222.52,25.29396902]
[1759998093442,10.366035,222.56,222.53,3.34729269]
[1759998093966,10.366035,222.59,222.54,5.27925423]
[1759998094259,10.366035,222.59,222.56,5.27925423]
[1759998094460,11.056035,222.61,222.57,4.4929685]
[1759998094678,10.366035,222.63,222.6,5.27925423]
[1759998094881,11.056035,222.65,222.6,5.27925423]
[1759998095093,10.366035,222.65,222.61,20.8]
[1759998095268,0.69,222.65,222.63,5.27925423]
[1759998095469,11.056035,222.69,222.66,20.8]
[1759998095661,0.69,222.69,222.66,5.27925423]
[1759998095867,0.69,222.69,222.63,20.8]
[1759998096066,0.69,222.69,222.67,20.8]
[1759998096583,0.69,222.69,222.67,25.2908774]
[1759998096757,10.366035,222.71,222.67,25.2908774]
[1759998096957,0.69,222.71,222.68,5.27925423]
[1759998097373,11.056035,222.71,222.68,5.27925423]
[1759998097652,10.366035,222.73,222.7,5.27925423]
[1759998097871,10.366035,222.73,222.67,73.81825423]
[1759998097872,11.056035,222.73,222.67,73.81825423]
[1759998098074,11.056035,222.73,222.72,5.27925423]
[1759998098262,10.366035,222.75,222.74,10.87647521]
[1759998098571,0.2,222.85,222.77,26.58750485]
[1759998098572,10.366035,222.84,222.77,26.58750485]
[1759998098880,0.2,222.85,222.83,5.27925423]
[1759998099082,0.2,222.85,222.8,20.8]
[1759998099380,0.2,222.85,222.84,26.07925423]
[1759998100181,0.2,222.85,222.84,36.95572944]
[1759998100562,0.2,222.85,222.84,41.44325412]
[1759998101683,1e-08,222.85,222.84,41.44325412]
[1759998102056,10.366035,222.97,222.92,20.8]
[1759998102256,11.056035,222.96,222.95,20.8]
[1759998102461,0.69,222.96,222.95,20.8]
[1759998103188,0.4482094,223.03,222.92,20.8]
[1759998103189,10.366035,222.95,222.92,20.8]
[1759998103376,10.366035,222.9,222.85,5.27925423]
[1759998103565,10.366035,222.86,222.83,37.46]
[1759998103765,10.366035,222.86,222.85,20.8]
[1759998103967,10.366035,222.88,222.85,20.8]
[1759998104187,10.366035,222.88,222.86,26.07925423]
[1759998104362,11.056035,222.88,222.86,20.8]
[1759998104560,10.366035,222.88,222.86,20.8]
[1759998104765,0.69,222.87,222.86,20.8]
[1759998105499,10.366035,222.88,222.86,20.8]
[1759998105996,11.056035,222.9,222.87,20.8]
[1759998106194,10.366035,222.9,222.87,20.8]
[1759998106368,10.366035,222.9,222.89,5.27925423]
[1759998106691,10.366035,222.87,222.85,20.8]
[1759998107192,0.4482094,223.02,222.72,16.15572944]
[1759998107193,10.366035,222.83,222.72,16.15572944]
[1759998107363,10.366035,222.83,222.82,20.8]
[1759998107562,10.366035,222.78,222.72,15.71479884]
[1759998107881,10.366035,222.8,222.77,5.27925423]
[1759998108084,10.366035,222.8,222.73,37.3]
[1759998108264,10.366035,222.78,222.72,15.71479884]
[1759998108466,10.366035,222.78,222.75,20.8]
[1759998108668,16.1482094,222.94,222.69,19.54221011]
[1759998108669,5.27925423,222.91,222.8,20.8]
[1759998108868,1.1382094,222.9,222.82,26.07925423]
[1759998109081,1.1382094,222.9,222.82,20.8]
[1759998109262,0.69,222.89,222.82,20.8]
[1759998109468,0.69,222.89,222.85,5.27925423]
[1759998109695,0.69,222.88,222.86,5.27925423]
[1759998110082,0.69,222.91,222.82,10.87647521]
[1759998110287,0.69,222.91,222.87,5.27925423]
[1759998110587,0.69,222.91,222.86,5.27925423]
[1759998111088,0.69,222.9,222.86,5.27925423]
[1759998111290,0.69,222.89,222.84,42.45925423]
[1759998111478,0.69,222.88,222.84,5.27925423]
[1759998111681,0.69,222.87,222.85,5.27925423]
[1759998111994,0.69,222.87,222.82,4.48773078]
[1759998112192,0.69,222.9,222.85,5.27925423]
[1759998112378,0.69,222.89,222.85,5.27925423]
[1759998112693,0.69,222.88,222.85,5.27925423]
[1759998113597,0.69,222.87,222.84,37.14]
[1759998113805,0.69,222.87,222.85,5.27925423]
[1759998114377,0.69,222.9,222.83,57.86]
[1759998114588,0.4482094,222.93,222.89,5.27925423]
[1759998114782,0.69,222.92,222.89,5.27925423]
[1759998115002,1.1382094,222.91,222.87,5.27925423]
[1759998115178,0.7,222.9,222.66,19.99999999]
[1759998115487,15.7000209,222.93,222.77,20.8]
[1759998115488,5.27925423,222.87,222.77,20.8]
[1759998115690,1.1482094,222.86,222.79,5.27925423]
[1759998116203,0.7,222.85,222.79,5.27925423]
[1759998116372,0.7,222.85,222.76,20.8]
[1759998116373,1.1482094,222.84,222.76,5.27925423]
[1759998116708,0.7,222.83,222.76,5.27925423]
[1759998116877,0.4482094,222.87,222.78,20.8]
[1759998117079,0.4482094,222.87,222.76,4.48911733]
[1759998117080,0.7,222.84,222.77,20.8]
[1759998117289,0.7,222.84,222.81,5.27925423]
[1759998117490,0.7,222.88,222.83,5.27925423]
[1759998117691,10.87647521,222.99,222.83,5.27925423]
[1759998117692,0.7,222.91,222.83,20.8]
[1759998118304,0.7,222.91,222.86,20.8]
[1759998118498,0.4482094,222.9,222.86,20.8]
[1759998118712,0.4482094,222.9,222.82,5.27925423]
[1759998118713,5.18671214,222.89,222.82,5.27925423]
[1759998118888,1.1482094,222.88,222.82,5.27925423]
[1759998119205,1.1482094,222.88,222.81,5.27925423]
[1759998119585,1.1482094,222.88,222.83,5.27925423]
[1759998119790,0.7,222.88,222.86,5.27925423]
[1759998120209,0.7,222.88,222.85,5.27925423]
[1759998120387,0.7,222.89,222.85,5.27925423]
[1759998120710,0.7,222.89,222.73,38.16251656]
[1759998120711,6.42746363,222.88,222.79,9.76772679]
[1759998120883,0.7,222.87,222.79,9.76772679]
[1759998121087,6.42746363,222.86,222.63,4.49175762]
[1759998121315,0.7,222.85,222.77,5.27925423]
[1759998121614,1.1482094,222.84,222.63,15.72115168]
[1759998121792,0.7,222.83,222.73,5.27925423]
[1759998122109,5.27925423,222.8,222.72,5.27925423]
[1759998122282,1.1482094,222.79,222.72,5.27925423]
[1759998122476,0.7,222.83,222.78,5.27925423]
[1759998122707,1.1482094,222.82,222.8,5.27925423]
[1759998123611,0.7,222.81,222.8,5.27925423]
[1759998124011,0.7,222.81,222.72,5.27925423]
[1759998124302,20.8,222.87,222.72,5.27925423]
[1759998124303,1.1482094,222.8,222.72,5.27925423]
[1759998124500,0.7,222.79,222.72,5.27925423]
[1759998124715,0.4482094,222.78,222.75,5.27925423]
[1759998124902,0.7,222.83,222.77,5.27925423]
[1759998125099,1.1482094,222.82,222.74,5.27925423]
[1759998125288,0.7,222.81,222.74,5.27925423]
[1759998125494,1.1482094,222.8,222.74,5.27925423]
[1759998125922,0.7,222.79,222.74,5.27925423]
[1759998126100,1.1482094,222.78,222.74,5.27925423]
[1759998126416,1.1482094,222.78,222.7,20.8]
[1759998126417,0.7,222.77,222.65,15.36782935]
[1759998126621,0.7,222.77,222.59,10.87647521]
[1759998126622,5.27925423,222.73,222.59,4.4925648]
[1759998126920,5.63834891,222.72,222.65,5.27925423]
[1759998127099,1.1482094,222.72,222.63,4.49174745]
[1759998127612,1.1482094,222.72,222.67,5.27925423]
[1759998127812,0.4482094,222.72,222.67,5.27925423]
[1759998128010,5.97925423,222.71,222.58,10.87647521]
[1759998128212,5.97925423,222.71,222.4,5.27925423]
[1759998128213,5.27925423,222.68,222.59,5.27925423]
[1759998128521,5.27925423,222.68,222.55,30.02]
[1759998128522,1.1482094,222.67,222.6,5.27925423]
[1759998128716,1.1482094,222.67,222.44,15.7345801]
[1759998128717,5.27925423,222.64,222.44,15.7345801]
[1759998128896,5.63996702,222.63,222.55,5.27925423]
[1759998129092,5.27925423,222.62,222.55,5.27925423]
[1759998129292,0.4482094,222.61,222.51,20.8]
[1759998129503,0.7,222.6,222.53,5.27925423]
[1759998129712,5.27925423,222.58,222.41,15.73670248]
[1759998129905,0.4482094,222.57,222.5,5.27925423]
[1759998130730,5.97925423,222.56,222.47,5.27925423]
[1759998131024,1.1482094,222.55,222.47,5.27925423]
[1759998132825,4.49357418,222.54,222.47,5.27925423]
[1759998133026,0.4482094,222.53,222.47,5.27925423]
[1759998133227,0.7,222.52,222.41,15.37267592]
[1759998133418,0.4482094,222.51,222.46,5.27925423]
[1759998133620,0.4482094,222.51,222.41,15.73670248]
[1759998133621,0.4482094,222.51,222.48,5.27925423]
[1759998134305,0.7,222.5,222.41,5.27925423]
[1759998134504,0.4482094,222.49,222.45,5.27925423]
[1759998134714,0.7,222.48,222.41,5.27925423]
[1759998134914,0.7,222.48,222.33,10.87647521]
[1759998134915,4.94319748,222.47,222.36,4.49711008]
[1759998135122,0.7,222.46,222.3,36.72]
[1759998135425,5.72746363,222.45,222.38,5.27925423]
[1759998135729,0.4482094,222.45,222.4,5.27925423]
[1759998135936,1.1482094,222.45,222.4,5.27925423]
[1759998136139,0.7,222.44,222.34,20.8]
[1759998136443,0.4482094,222.43,222.34,20.8]
[1759998136733,0.4482094,222.43,222.37,5.27925423]
[1759998137036,0.4482094,222.47,222.39,5.27925423]
[1759998137233,0.4482094,222.46,222.41,5.27925423]
[1759998137437,0.4482094,222.46,222.43,5.27925423]
[1759998137608,0.4482094,222.47,222.43,5.27925423]
[1759998137934,0.4482094,222.47,222.4,20.8]
[1759998138121,0.4482094,222.47,222.44,5.27925423]
[1759998138424,0.4482094,222.48,222.44,5.27925423]
[1759998138725,0.4482094,222.51,222.44,5.27925423]
[1759998139326,0.4482094,222.51,222.46,5.27925423]
[1759998139709,0.7,222.52,222.46,5.27925423]
[1759998139913,0.4482094,222.51,222.46,5.27925423]
[1759998140106,1.1482094,222.51,222.43,20.8]
[1759998140331,0.7,222.56,222.44,10.87647521]
[1759998140513,5.27925423,222.53,222.43,20.8]
[1759998140825,5.27925423,222.5,222.43,26.07925423]
[1759998141128,0.7,222.56,222.48,5.27925423]
[1759998141340,0.7,222.56,222.37,47.39647521]
[1759998141341,5.27925423,222.53,222.45,5.27925423]
[1759998141513,5.27925423,222.51,222.43,5.27925423]
[1759998141708,5.27925423,222.48,222.4,20.8]
[1759998142006,5.27925423,222.48,222.36,11.2429396]
[1759998142007,0.4482094,222.47,222.24,45.64024112]
[1759998142210,0.4482094,222.47,222.41,5.27925423]
[1759998142410,0.4482094,222.47,222.44,5.27925423]
[1759998142633,0.4482094,222.51,222.45,5.27925423]
[1759998142942,5.27925423,222.48,222.36,11.24269914]
[1759998143139,5.27925423,222.48,222.24,13.47098689]
[1759998143140,5.27925423,222.43,222.25,16.50254985]
[1759998143436,0.4482094,222.42,222.3,10.87647521]
[1759998143647,5.72746363,222.42,222.27,36.5]
[1759998143812,5.72746363,222.42,222.34,5.27925423]
[1759998144145,5.72746363,222.42,222.32,20.8]
[1759998144146,1.1482094,222.42,222.35,5.27925423]
[1759998144313,6.42746363,222.42,222.35,5.27925423]
[1759998144509,6.42746363,222.42,222.34,20.8]
[1759998144719,1.1482094,222.42,222.36,5.27925423]
[1759998145013,1.1482094,222.42,222.32,20.8]
[1759998145014,5.64421587,222.42,222.32,20.8]
[1759998145210,5.97925423,222.41,222.26,47.31647521]
[1759998145425,0.4482094,222.4,222.33,5.27925423]
[1759998146336,5.27925423,222.37,222.26,10.87647521]
[1759998146536,0.4482094,222.36,222.28,5.27925423]
[1759998146842,0.4482094,222.36,222.25,5.27925423]
[1759998146843,5.27925423,222.33,222.25,5.27925423]
[1759998147055,5.27925423,222.3,222.23,0.1]
[1759998147220,0.4482094,222.29,222.23,0.1]
[1759998147422,1.1482094,222.29,222.23,0.1]
[1759998148223,5.27925423,222.25,222.23,0.1]
[1759998148420,6.42746363,222.24,222.23,0.1]
[1759998148931,10.92710365,222.24,222.23,0.1]
[1759998149123,5.64784942,222.24,222.23,0.1]
[1759998149644,10.92710365,222.24,222.23,0.1]
[1759998150224,10.92710365,222.24,222.07,0.12]
[1759998150225,22.17620372,222.24,222.07,0.12]
[1759998150539,42.72746363,222.24,222.07,0.12]
[1759998150860,10.92714575,222.24,222.17,5.27925423]
[1759998151221,22.17624582,222.24,222.11,20.92]
[1759998151435,5.27925423,222.2,222.12,5.27925423]
[1759998151631,5.27925423,222.2,222.05,10.87647521]
[1759998151632,0.4482094,222.19,222.14,5.27925423]
[1759998152528,0.4482094,222.21,222.16,5.27925423]
[1759998152843,1.1482094,222.21,222.16,5.27925423]
[1759998153220,1.1482094,222.21,222.12,25.30194783]
[1759998153418,1.1482094,222.21,222.15,5.27925423]
[1759998153615,1.1482094,222.21,222.12,20.8]
[1759998153838,1.1482094,222.21,222.12,25.30203583]
[1759998154045,1.1482094,222.21,222.15,3.37189599]
[1759998154218,1.1482094,222.21,222.14,3.37189599]
[1759998154420,4.07189599,222.25,222.17,3.37189599]
[1759998154632,0.4482094,222.24,222.17,3.37189599]
[1759998155121,3.37189599,222.21,222.09,0.12]
[1759998155320,0.4482094,222.2,222.15,3.37189599]
[1759998155547,1.1482094,222.2,222.15,3.37189599]
[1759998155721,1.1482094,222.2,222.11,20.8]
[1759998156148,1.1482094,222.2,222.13,3.37189599]
[1759998156750,1.1482094,222.2,222.11,20.8]
[1759998156944,4.50065259,222.19,222.12,3.37189599]
[1759998157142,0.4482094,222.18,222.13,3.37189599]
[1759998158035,0.7,222.17,222.04,14.63069152]
[1759998158401,4.52010539,222.16,222.08,3.37189599]
[1759998158529,1.1482094,222.16,222.08,3.37189599]
[1759998158726,4.52010539,222.16,222.05,20.92]
[1759998158923,4.07189599,222.15,222.05,20.8]
[1759998159169,11.25163148,222.19,222.06,0.12]
[1759998159170,0.4482094,222.14,222.06,0.12]
[1759998159332,0.4482094,222.17,222.1,3.37189599]
[1759998159728,0.7,222.16,222.1,3.37189599]
[1759998159925,0.4482094,222.15,222.1,3.37189599]
[1759998160134,0.7,222.14,222.1,3.37189599]
[1759998160349,0.4482094,222.13,222.1,3.37189599]
[1759998160549,0.4482094,222.15,222.1,3.37189599]
[1759998160737,0.7,222.2,222.12,10.87647521]
[1759998161052,1.1482094,222.19,222.1,20.8]
[1759998161254,1.1482094,222.19,222.04,0.12]
[1759998161255,0.7,222.18,222.11,3.37189599]
[1759998161440,0.4482094,222.17,222.06,4.50328739]
[1759998161644,0.4482094,222.17,222.09,3.37189599]
[1759998161844,0.4482094,222.17,222.04,35.0483712]
[1759998161845,0.4482094,222.17,222.07,0.12]
[1759998162050,4.07189599,222.16,222.08,3.37189599]
[1759998162266,0.4482094,222.15,222.08,3.37189599]
[1759998162565,0.4482094,222.15,222.1,3.37189599]
[1759998163068,0.4482094,222.17,222.1,3.37189599]
[1759998163360,0.4482094,222.17,222.12,3.37189599]
[1759998163754,0.4482094,222.18,222.15,3.37189599]
[1759998163957,4.94845806,222.21,222.15,3.37189599]
[1759998164164,0.4482094,222.21,222.15,3.37189599]
[1759998164365,0.4482094,222.21,222.12,0.12]
[1759998164577,4.94784942,222.24,222.17,3.37189599]
[1759998164776,0.4482094,222.24,222.19,3.37189599]
[1759998164948,0.4482094,222.24,222.16,0.12]
[1759998165146,0.4482094,222.27,222.21,3.37189599]
[1759998165347,0.69,222.31,222.26,3.37189599]
[1759998165571,0.69,222.35,222.28,3.37189599]
[1759998165750,3.37189599,222.38,222.3,3.37189599]
[1759998165751,0.4482094,222.34,222.3,3.37189599]
[1759998166069,0.4482094,222.37,222.3,3.37189599]
[1759998166243,0.4482094,222.37,222.31,3.37189599]
[1759998166783,0.69,222.36,222.21,0.12]
[1759998166948,0.4482094,222.35,222.23,3.37189599]
[1759998167283,0.4482094,222.35,222.21,0.12]
[1759998167284,3.37189599,222.32,222.24,3.37189599]
[1759998167461,0.4482094,222.31,222.24,3.37189599]
[1759998167853,0.4482094,222.31,222.26,3.37189599]
[1759998168157,0.4482094,222.33,222.26,3.37189599]
[1759998168353,1.1382094,222.33,222.24,3.37189599]
[1759998168572,0.69,222.32,222.17,10.87647521]
[1759998168757,3.37189599,222.29,222.2,3.37189599]
[1759998168952,0.4482094,222.28,222.2,3.37189599]
[1759998169154,0.4482094,222.28,222.22,3.37189599]
[1759998169759,4.94710325,222.28,222.2,3.37189599]
[1759998170461,0.4482094,222.28,222.2,3.37189599]
[1759998170673,4.94708175,222.28,222.2,3.37189599]
[1759998170992,4.06189599,222.27,222.15,0.12]
[1759998171190,4.94744453,222.26,222.17,3.37189599]
[1759998171360,3.37189599,222.25,222.17,3.37189599]
[1759998171551,0.4482094,222.24,222.17,3.37189599]
[1759998171873,0.4482094,222.24,222.15,4.62143017]
[1759998172179,0.4482094,222.24,222.17,3.37189599]
[1759998172777,0.4482094,222.24,222.15,0.12]
[1759998172979,0.4482094,222.24,222.17,3.37189599]
[1759998173186,0.4482094,222.25,222.19,3.37189599]
[1759998173978,0.4482094,222.25,222.18,3.37189599]
[1759998174353,4.06189599,222.24,222.13,4.50177099]
[1759998174579,1.1382094,222.23,222.14,3.37189599]
[1759998174787,1.1382094,222.23,222.07,0.12]
[1759998174788,3.37189599,222.2,222.07,0.12]
[1759998174987,0.4482094,222.19,222.12,3.37189599]
[1759998175287,4.50085516,222.18,222.12,3.37189599]
[1759998175587,4.06189599,222.2,222.12,3.37189599]
[1759998175588,0.4482094,222.17,222.12,3.37189599]
[1759998175787,0.4482094,222.19,222.12,3.37189599]
[1759998175981,4.9488839,222.19,222.12,3.37189599]
[1759998176370,4.9488839,222.19,222.09,0.12]
[1759998176572,0.68,222.18,222.06,4.62328039]
[1759998176769,0.4482094,222.17,222.11,3.37189599]
[1759998177193,4.50126035,222.16,222.11,3.37189599]
[1759998177358,0.4482094,222.15,222.11,3.37189599]
[1759998177863,4.94906456,222.18,222.11,3.37189599]
[1759998178171,0.4482094,222.18,222.11,3.37189599]
[1759998178888,0.4482094,222.21,222.17,3.37189599]
[1759998179270,0.68,222.28,222.19,3.37189599]
[1759998179468,3.82010539,222.27,222.19,3.37189599]
[1759998179688,0.68,222.26,222.14,20.8]
[1759998179891,4.50010539,222.25,222.16,3.37189599]
[1759998180093,0.68,222.24,222.16,3.37189599]
[1759998180297,3.37189599,222.3,222.09,4.62262772]
[1759998180298,3.37189599,222.2,222.09,4.62262772]
[1759998180464,1.1282094,222.19,222.11,3.37189599]
[1759998180666,3.82010539,222.19,222.06,0.12]
[1759998180985,0.68,222.18,222.1,3.37189599]
[1759998181192,4.50126035,222.16,222.06,0.12]
[1759998181375,0.4482094,222.15,222.09,3.37189599]
[1759998181990,0.4482094,222.15,222.1,3.37189599]
[1759998182362,0.4482094,222.16,222.1,3.37189599]
[1759998183271,0.4482094,222.16,222.06,15.88149409]
[1759998183485,4.94953594,222.16,222.06,15.88149409]
[1759998183878,4.94947391,222.16,222.06,15.88149409]
[1759998184187,0.4482094,222.16,222.06,15.88149409]
[1759998184386,0.4482094,222.21,222.14,3.37189599]
[1759998184577,5.17975639,222.24,222.19,3.37189599]
[1759998184578,0.4482094,222.23,222.19,3.37189599]
[1759998185091,0.4482094,222.27,222.17,20.8]
[1759998185396,0.4482094,222.27,222.22,3.37189599]
[1759998185576,5.62726758,222.27,222.2,3.37189599]
[1759998185890,0.4482094,222.3,222.24,3.37189599]
[1759998186094,0.4482094,222.31,222.26,3.37189599]
[1759998186264,1.1282094,222.34,222.28,3.37189599]
[1759998186463,5.6258335,222.34,222.26,3.37189599]
[1759998186889,0.4482094,222.34,222.3,3.37189599]
[1759998187104,0.4482094,222.37,222.32,3.37189599]
[1759998187266,0.68,222.36,222.3,3.37189599]
[1759998187467,0.68,222.36,222.19,15.75209212]
[1759998187468,3.37189599,222.31,222.21,4.50017756]
[1759998187778,0.4482094,222.3,222.22,3.37189599]
[1759998187965,0.4482094,222.3,222.2,20.8]
[1759998188161,0.4482094,222.3,222.25,3.37189599]
[1759998188423,0.4482094,222.32,222.25,3.37189599]
[1759998188694,0.4482094,222.32,222.26,3.37189599]
[1759998188875,0.4482094,222.34,222.28,3.37189599]
[1759998189075,0.68,222.33,222.22,3.37189599]
[1759998189286,3.37189599,222.28,222.15,0.12]
[1759998189474,4.49923513,222.26,222.18,3.37189599]
[1759998189794,0.4482094,222.25,222.15,0.12]
[1759998189994,3.37189599,222.24,222.15,0.12]
[1759998190196,0.4482094,222.23,222.09,35.1]
[1759998190495,4.05189599,222.22,222.14,3.37189599]
[1759998190673,0.4482094,222.21,222.14,3.37189599]
[1759998190869,0.4482094,222.21,222.16,3.37189599]
[1759998191070,3.37189599,222.26,222.18,3.37189599]
[1759998191288,0.4482094,222.25,222.18,3.37189599]
[1759998191489,8.55153601,222.24,222.16,3.37189599]
[1759998191694,3.37189599,222.22,222.14,3.37189599]
[1759998191992,0.4482094,222.21,222.14,3.37189599]
[1759998192404,0.4482094,222.21,222.16,3.37189599]
[1759998192698,1.1282094,222.21,222.16,3.37189599]
[1759998193277,5.62865593,222.21,222.16,3.37189599]
[1759998194195,1.1282094,222.21,222.16,3.37189599]
[1759998194377,0.4482094,222.21,222.16,3.37189599]
[1759998194573,0.4482094,222.24,222.18,3.37189599]
[1759998194881,0.4482094,222.24,222.2,3.37189599]
[1759998195504,0.4482094,222.24,222.16,4.62110451]
[1759998195790,0.4482094,222.26,222.19,3.37189599]
[1759998196095,0.4482094,222.26,222.16,4.62110451]
[1759998196291,0.4482094,222.26,222.19,3.37189599]
[1759998196707,0.4482094,222.27,222.23,3.37189599]
[1759998197597,0.68,222.26,222.14,10.99647521]
[1759998197781,0.4482094,222.25,222.19,3.37189599]
[1759998198296,0.4482094,222.25,222.18,3.37189599]
[1759998198502,0.4482094,222.25,222.16,3.37189599]
[1759998198503,0.68,222.24,222.16,3.37189599]
[1759998198686,4.9480519,222.23,222.16,3.37189599]
[1759998198872,0.4482094,222.23,222.15,0.12]
[1759998199073,4.94764697,222.25,222.18,3.37189599]